bitfinex/quotes_SOLUSD_20241215
["timestamp","ask_amount","ask_price","bid_price","bid_amount"]
[1734231428647,23.776884,221.2,221.12,8.71737714]
[1734231428820,23.776884,221.2,221.07,20.0]
[1734231429027,23.776884,221.2,221.08,8.71737714]
[1734231429221,23.776884,221.2,221.05,0.67829012]
[1734231429434,23.776884,221.17,221.08,8.71737714]
[1734231429923,23.776884,221.17,221.01,0.67843977]
[1734231429924,20.0,221.14,221.01,0.67843977]
[1734231430131,20.0,221.14,221.05,8.71737714]
[1734231430661,23.776884,221.13,221.05,8.71737714]
[1734231432850,23.776884,221.13,221.04,8.71737714]
[1734231433557,23.776884,221.13,221.03,8.71737714]
[1734231433734,23.776884,221.13,221.02,8.71737714]
[1734231433933,20.0,221.1,221.02,8.71737714]
[1734231434257,20.0,221.1,221.01,8.71737714]
[1734231435352,20.0,221.1,221.03,8.71737714]
[1734231435560,20.0,221.1,221.02,8.71737714]
[1734231436358,20.0,221.08,221.0,8.71737714]
[1734231436557,20.0,221.08,220.99,8.71737714]
[1734231436936,23.776884,221.07,220.99,8.71737714]
[1734231437352,23.776884,221.08,220.99,8.71737714]
[1734231439747,23.776884,221.08,220.96,20.0]
[1734231439945,23.776884,221.08,220.99,8.71737714]
[1734231440652,23.776884,221.08,220.98,8.71737714]
[1734231441164,23.776884,221.08,220.99,8.71737714]
[1734231442181,23.776884,221.08,220.96,20.0]
[1734231442360,23.776884,221.08,220.99,8.71737714]
[1734231444045,1.5887,221.09,221.03,8.71737714]
[1734231444445,1.5887,221.09,221.02,8.71737714]
[1734231447363,1.5887,221.09,221.04,8.71737714]
[1734231447553,1.5152,221.15,221.07,8.71737714]
[1734231447752,1.5152,221.15,221.0,34.86950856]
[1734231447753,1.5152,221.15,221.08,8.71737714]
[1734231450549,1.5152,221.15,221.07,8.71737714]
[1734231452288,1.5152,221.15,221.08,8.71737714]
[1734231452852,1.5152,221.15,221.07,8.71737714]
[1734231453272,1.5152,221.15,221.06,8.71737714]
[1734231454254,1.5152,221.15,221.05,8.71737714]
[1734231454653,1.5152,221.15,221.04,8.71737714]
[1734231456466,23.776884,221.14,221.04,8.71737714]
[1734231456681,23.776884,221.14,221.03,8.71737714]
[1734231456863,20.0,221.11,221.02,8.71737714]
[1734231457064,23.776884,221.1,220.97,30.0]
[1734231457275,1.5844,221.09,220.99,8.71737714]
[1734231458770,1.5844,221.09,221.0,8.71737714]
[1734231459057,1.5844,221.09,221.01,8.71737714]
[1734231459762,1.5844,221.09,221.0,8.71737714]
[1734231460674,1.5844,221.09,221.01,8.71737714]
[1734231461388,1.5844,221.09,221.0,8.71737714]
[1734231464379,1.5844,221.09,221.01,8.71737714]
[1734231465266,1.5844,221.09,221.0,8.71737714]
[1734231467383,23.776884,221.08,220.99,8.71737714]
[1734231471480,23.776884,221.08,221.0,8.71737714]
[1734231471879,23.776884,221.08,220.96,0.80414442]
[1734231472233,23.776884,221.08,220.99,8.71737714]
[1734231473293,23.776884,221.08,221.0,8.71737714]
[1734231482199,23.776884,221.08,220.99,8.71737714]
[1734231490483,23.776884,221.08,220.96,0.67865442]
[1734231490692,23.776884,221.08,220.96,8.71737714]
[1734231492083,23.776884,221.08,220.97,8.71737714]
[1734231493315,23.776884,221.04,220.93,0.67869485]
[1734231493489,23.776884,221.02,220.93,8.71737714]
[1734231493805,29.981984,221.02,220.92,8.71737714]
[1734231494009,29.981984,221.02,220.88,0.67881897]
[1734231494221,23.776884,220.98,220.86,7.07196645]
[1734231494394,23.776884,220.98,220.88,8.71737714]
[1734231494784,1.5326,220.97,220.88,8.71737714]
[1734231500219,1.5326,220.97,220.84,0.12549]
[1734231500416,1.5326,220.97,220.88,8.71737714]
[1734231503622,1.5326,220.97,220.86,0.12549]
[1734231503808,1.5326,220.97,220.86,8.71737714]
[1734231505820,1.5326,220.97,220.87,8.71737714]
[1734231508219,1.5326,220.97,220.88,8.71737714]
[1734231508619,1.5326,220.97,220.87,8.71737714]
[1734231509921,23.776884,220.96,220.87,8.71737714]
[1734231510117,23.776884,220.96,220.83,2.71495786]
[1734231510118,29.950484,220.96,220.83,20.0]
[1734231510323,20.0,220.93,220.82,0.4512513]
[1734231510530,23.776884,220.92,220.82,0.4512513]
[1734231511621,23.776884,220.92,220.82,9.16862844]
[1734231512845,1.6181,220.94,220.88,8.71737714]
[1734231518015,1.6181,220.94,220.87,8.71737714]
[1734231518718,1.6181,220.94,220.83,20.93014553]
[1734231518919,1.6181,220.94,220.87,8.71737714]
[1734231521727,1.6181,220.94,220.83,20.80465553]
[1734231521935,23.776884,220.93,220.84,8.71737714]
[1734231523223,23.776884,220.93,220.85,8.71737714]
[1734231524163,23.776884,220.93,220.82,0.4512513]
[1734231524327,23.776884,220.93,220.83,8.71737714]
[1734231524653,23.776884,220.93,220.82,9.16862844]
[1734231524823,23.776884,220.93,220.83,8.71737714]
[1734231525550,23.776884,220.93,220.84,8.71737714]
[1734231527459,20.0,220.93,220.85,8.71737714]
[1734231527624,1.6181,220.94,220.85,8.71737714]
[1734231527824,1.6181,220.94,220.86,8.71737714]
[1734231533052,1.6181,220.94,220.88,8.71737714]
[1734231533272,1.6181,220.94,220.83,20.80455325]
[1734231533441,1.6181,220.94,220.87,8.71737714]
[1734231533624,1.6181,220.94,220.86,8.71737714]
[1734231538421,1.6181,220.94,220.87,8.71737714]
[1734231548768,1.6181,220.94,220.86,8.71737714]
[1734231549069,1.6181,220.94,220.87,8.71737714]
[1734231549269,1.6181,220.94,220.88,8.71737714]
[1734231549850,1.6181,220.94,220.87,8.71737714]
[1734231550769,1.6181,220.94,220.89,8.71737714]
[1734231550967,1.6181,220.94,220.88,8.71737714]
[1734231551296,1.6181,220.94,220.86,8.71737714]
[1734231551571,1.6181,220.94,220.87,8.71737714]
[1734231558058,1.6181,220.94,220.88,8.71737714]
[1734231559150,1.6181,220.94,220.87,8.71737714]
[1734231561077,1.6181,220.94,220.9,8.71737714]
[1734231561253,1.6181,220.94,220.89,8.71737714]
[1734231562470,1.6181,220.94,220.88,8.71737714]
[1734231567598,1.6181,220.94,220.86,0.67894997]
[1734231568095,1.6181,220.94,220.88,8.71737714]
[1734231570209,1.6181,220.94,220.84,20.0]
[1734231570405,1.6181,220.94,220.84,58.71737714]
[1734231570606,1.6181,220.94,220.85,8.71737714]
[1734231572916,1.6181,220.94,220.86,8.71737714]
[1734231573089,1.6181,220.94,220.88,8.71737714]
[1734231573400,1.6181,220.94,220.87,8.71737714]
[1734231575714,1.6181,220.94,220.86,8.71737714]
[1734231582208,1.6181,220.94,220.87,8.71737714]
[1734231586818,1.6181,220.94,220.84,20.12549]
[1734231587121,1.6181,220.94,220.87,8.71737714]
[1734231591349,1.6181,220.94,220.84,20.12549]
[1734231591551,1.6181,220.94,220.86,8.71737714]
[1734231592442,1.6181,220.94,220.85,30.0]
[1734231593034,1.6181,220.94,220.84,8.71737714]
[1734231593948,1.6181,220.94,220.85,8.71737714]
[1734231594265,1.6181,220.94,220.86,8.71737714]
[1734231600642,1.6181,220.94,220.88,8.71737714]
[1734231603337,6.0382,221.0,220.9,8.71737714]
[1734231603544,1.5207,221.01,220.95,8.71737714]
[1734231604782,1.5207,221.01,220.86,30.84885045]
[1734231604783,1.5207,221.01,220.92,8.71737714]
[1734231606140,23.776884,221.0,220.88,20.0]
[1734231606341,23.776884,221.0,220.89,8.71737714]
[1734231606665,23.776884,221.0,220.88,20.0]
[1734231606865,23.776884,221.0,220.9,8.71737714]
[1734231607062,23.776884,221.0,220.91,8.71737714]
[1734231611672,1.5207,221.01,220.88,20.67894162]
[1734231611673,1.5207,221.01,220.93,8.71737714]
[1734231614857,1.5207,221.01,220.94,8.71737714]
[1734231615981,1.5207,221.01,220.93,8.71737714]
[1734231617090,23.776884,221.0,220.88,20.0]
[1734231617288,23.776884,221.0,220.88,28.71737714]
[1734231619584,23.776884,221.0,220.89,8.71737714]
[1734231624689,23.776884,221.0,220.9,8.71737714]
[1734231625678,1.5207,221.01,220.92,8.71737714]
[1734231625875,1.5207,221.01,220.94,8.71737714]
[1734231627089,1.5207,221.01,220.93,8.71737714]
[1734231628814,6.0382,221.05,220.98,8.71737714]
[1734231629518,6.0382,221.05,220.97,8.71737714]
[1734231633284,6.0382,221.05,220.94,0.67869778]
[1734231633497,6.0382,221.05,220.97,8.71737714]
[1734231634686,1.5835,221.07,220.99,8.71737714]
[1734231636482,1.5835,221.07,220.96,20.0]
[1734231636688,1.5835,221.07,220.99,8.71737714]
[1734231637712,1.5835,221.07,221.0,8.71737714]
[1734231640195,1.5835,221.07,221.01,8.71737714]
[1734231641234,6.6176,221.1,221.04,8.71737714]
[1734231641420,6.6176,221.1,220.98,0.25098]
[1734231641421,1.5835,221.12,221.05,8.71737714]
[1734231644299,1.5835,221.12,220.96,25.0]
[1734231644300,21.5835,221.12,220.97,20.6784358]
[1734231644514,23.776884,221.11,221.0,8.71737714]
[1734231644704,23.776884,221.11,221.01,8.71737714]
[1734231645914,23.776884,221.11,220.98,0.67859522]
[1734231646116,1.6597,221.06,220.95,0.67859522]
[1734231646314,1.6597,221.06,220.95,8.71737714]
[1734231646722,1.6597,221.06,220.93,0.67865602]
[1734231646928,1.6597,221.06,220.95,8.71737714]
[1734231648104,1.6597,221.06,220.96,8.71737714]
[1734231649220,23.776884,221.06,220.96,8.71737714]
[1734231652334,19.85023651,221.07,220.89,0.67874728]
[1734231652335,23.776884,221.04,220.89,0.67874728]
[1734231652515,20.0,221.0,220.89,0.67874728]
[1734231652717,1.6597,220.98,220.84,0.67890664]
[1734231653021,1.6597,220.98,220.89,8.71737714]
[1734231657143,1.6597,220.98,220.88,8.71737714]
[1734231661120,1.6597,220.98,220.87,8.84286714]
[1734231661835,1.6597,220.98,220.88,8.71737714]
[1734231662838,1.6597,220.98,220.87,0.12549]
[1734231663051,1.6597,220.98,220.87,8.84286714]
[1734231663618,23.776884,220.97,220.84,0.12549]
[1734231663836,23.776884,220.97,220.85,8.71737714]
[1734231664047,23.776884,220.97,220.86,0.12549]
[1734231664746,6.2988,220.96,220.86,0.12549]
[1734231665133,6.2988,220.96,220.85,8.71737714]
[1734231670634,6.2988,220.96,220.87,8.71737714]
[1734231671643,6.2988,220.96,220.86,8.71737714]
[1734231672842,6.2988,220.96,220.82,0.4512513]
[1734231672843,23.776884,220.95,220.82,0.4512513]
[1734231673150,23.776884,220.95,220.83,8.71737714]
[1734231674434,23.776884,220.95,220.84,8.71737714]
[1734231678475,23.776884,220.95,220.86,8.71737714]
[1734231681471,6.2988,220.96,220.87,8.71737714]
[1734231682270,6.2988,220.96,220.86,9.39634967]
[1734231682878,6.2988,220.96,220.84,0.12549]
[1734231683085,6.2988,220.96,220.86,8.71737714]
[1734231683689,23.776884,220.95,220.83,9.52184131]
[1734231685800,23.776884,220.95,220.84,8.71737714]
[1734231686096,23.776884,220.95,220.85,8.71737714]
[1734231690083,6.2988,220.96,220.86,0.67902511]
[1734231690292,6.2988,220.96,220.86,9.39640225]
[1734231692196,6.2988,220.96,220.86,0.67902511]
[1734231692385,6.2988,220.96,220.85,8.71737714]
[1734231694175,23.776884,220.95,220.83,0.12549]
[1734231694482,23.776884,220.95,220.83,8.84286714]
[1734231695272,1.5755,220.91,220.82,0.4512513]
[1734231696902,6.3213,220.89,220.82,0.4512513]
[1734231698704,6.3213,220.89,220.82,9.16862844]
[1734231699587,6.3213,220.89,220.82,0.4512513]
[1734231712116,6.3213,220.89,220.81,8.66862844]
[1734231713139,6.3213,220.89,220.74,0.67924114]
[1734231713140,6.3213,220.89,220.79,8.71737714]
[1734231713451,6.3213,220.89,220.8,30.0]
[1734231714166,6.3213,220.89,220.8,38.71737714]
[1734231716447,6.3213,220.89,220.8,8.71737714]
[1734231718049,6.3213,220.89,220.79,9.39661907]
[1734231718848,23.776884,220.88,220.79,0.67924193]
[1734231719070,23.776884,220.88,220.77,0.12549]
[1734231719279,23.776884,220.88,220.76,0.67922688]
[1734231719476,6.3213,220.89,220.72,2.2077265]
[1734231719477,25.295884,220.84,220.72,2.2077265]
[1734231719679,25.295884,220.84,220.74,8.71737714]
[1734231720362,25.295884,220.84,220.72,9.39670364]
[1734231720548,23.776884,220.8,220.68,8.71737714]
[1734231720745,23.776884,220.8,220.68,8.21737714]
[1734231721048,23.776884,220.81,220.7,1.75]
[1734231722148,23.776884,220.81,220.69,8.71737714]
[1734231725478,23.776884,220.81,220.65,0.67953007]
[1734231725479,23.776884,220.81,220.7,8.71737714]
[1734231725683,23.776884,220.81,220.68,0.12549]
[1734231725858,23.776884,220.81,220.69,8.71737714]
[1734231726563,23.776884,220.81,220.7,8.71737714]
[1734231728926,6.2129,220.82,220.73,8.71737714]
[1734231729085,6.2129,220.82,220.74,8.71737714]
[1734231730126,6.2129,220.82,220.73,8.71737714]
[1734231731788,6.2129,220.82,220.74,8.71737714]
[1734231732228,6.2129,220.82,220.73,8.71737714]
[1734231733522,23.776884,220.81,220.69,20.0]
[1734231733736,23.776884,220.81,220.7,2.44952568]
[1734231733902,23.776884,220.81,220.71,8.71737714]
[1734231734623,23.776884,220.81,220.72,1.77]
[1734231735317,23.776884,220.81,220.71,8.71737714]
[1734231738393,6.2129,220.82,220.73,8.71737714]
[1734231739930,6.2129,220.82,220.74,0.12549]
[1734231740311,6.2129,220.82,220.72,8.71737714]
[1734231740510,6.2129,220.82,220.73,30.0]
[1734231744499,6.2129,220.82,220.72,8.71737714]
[1734231746125,6.2129,220.82,220.73,30.0]
[1734231746551,21.519,220.84,220.74,0.12549]
[1734231747023,1.519,220.84,220.74,0.12549]
[1734231747777,21.519,220.84,220.74,0.12549]
[1734231748074,21.519,220.84,220.74,8.84286714]
[1734231748426,21.519,220.84,220.74,0.12549]
[1734231748647,21.519,220.84,220.74,8.84286714]
[1734231751963,1.519,220.84,220.75,8.71737714]
[1734231753928,1.519,220.84,220.76,8.71737714]
[1734231756708,6.1652,220.87,220.74,0.80481782]
[1734231756709,6.1652,220.87,220.81,8.71737714]
[1734231757161,6.1652,220.87,220.8,8.71737714]
[1734231762842,6.1652,220.87,220.79,8.71737714]
[1734231766743,6.1652,220.87,220.78,0.12549]
[1734231766973,6.1652,220.87,220.79,8.71737714]
[1734231767957,6.1652,220.87,220.8,8.71737714]
[1734231770073,6.1652,220.87,220.79,8.71737714]
[1734231773877,6.1652,220.87,220.8,8.71737714]
[1734231774880,6.1652,220.87,220.79,8.71737714]
[1734231776547,6.1652,220.87,220.76,0.12549]
[1734231776956,23.776884,220.86,220.75,28.71737714]
[1734231777174,23.776884,220.86,220.76,8.71737714]
[1734231778571,23.776884,220.86,220.77,8.71737714]
[1734231780953,23.776884,220.86,220.78,8.71737714]
[1734231781367,6.1652,220.87,220.79,8.71737714]
[1734231781568,6.1652,220.87,220.8,8.71737714]
[1734231781776,6.1652,220.87,220.81,8.71737714]
[1734231781972,1.5333,220.89,220.81,8.71737714]
[1734231782558,1.5333,220.89,220.83,8.71737714]
[1734231785060,6.2563,220.92,220.84,8.71737714]
[1734231785269,6.2563,220.92,220.85,8.71737714]
[1734231785469,1.5656,220.93,220.85,8.71737714]
[1734231786478,1.5656,220.93,220.86,8.71737714]
[1734231788197,1.5656,220.93,220.87,8.71737714]
[1734231793288,1.5656,220.93,220.85,8.71737714]
[1734231795994,1.5656,220.93,220.81,20.0]
[1734231796199,1.5656,220.93,220.83,8.71737714]
[1734231797093,1.5656,220.93,220.79,0.67907101]
[1734231797094,1.5656,220.93,220.85,8.71737714]
[1734231797673,1.5656,220.93,220.84,8.71737714]
[1734231798298,1.5656,220.93,220.86,8.71737714]
[1734231802320,1.5656,220.93,220.85,8.71737714]
[1734231806121,23.776884,220.92,220.81,0.67905027]
[1734231806292,20.0,220.89,220.77,0.67910313]
[1734231806492,20.0,220.88,220.78,8.71737714]
[1734231807790,1.5007,220.87,220.77,8.71737714]
[1734231808303,23.776884,220.86,220.73,0.67932457]
[1734231808614,23.776884,220.86,220.75,8.71737714]
[1734231809127,23.776884,220.86,220.76,8.71737714]
[1734231811299,23.776884,220.86,220.74,8.71737714]
[1734231811494,23.776884,220.84,220.74,8.71737714]
[1734231813202,23.776884,220.84,220.7,0.6794181]
[1734231813401,23.776884,220.84,220.73,8.71737714]
[1734231815897,1.607,220.8,220.68,20.0]
[1734231816114,1.607,220.8,220.71,8.71737714]
[1734231816832,1.607,220.8,220.66,0.67944942]
[1734231816833,1.607,220.8,220.67,20.0]
[1734231817031,1.607,220.8,220.7,8.71737714]
[1734231817238,1.607,220.8,220.71,8.71737714]
[1734231817411,1.607,220.8,220.72,8.71737714]
[1734231818699,1.607,220.8,220.71,8.71737714]
[1734231819231,1.607,220.8,220.7,8.71737714]
[1734231820402,23.776884,220.79,220.67,20.0]
[1734231820606,21.607,220.74,220.6,4.83215729]
[1734231820807,23.776884,220.73,220.62,8.71737714]
[1734231821195,0.25098,220.72,220.59,0.5519172]
[1734231821402,20.0,220.7,220.6,8.71737714]
[1734231822342,20.0,220.7,220.59,0.5519172]
[1734231822343,20.0,220.65,220.59,0.5519172]
[1734231822508,25.509374,220.67,220.59,0.5519172]
[1734231822509,20.0,220.64,220.59,0.5519172]
[1734231823260,20.0,220.65,220.59,0.5519172]
[1734231823609,23.776884,220.64,220.59,0.5519172]
[1734231824217,0.25098,220.63,220.59,0.5519172]
[1734231824426,20.0,220.61,220.59,0.5519172]
[1734231824814,23.902374,220.6,220.59,0.5519172]
[1734231826926,24.027864,220.6,220.59,0.5519172]
[1734231827239,25.633464,220.6,220.59,0.5519172]
[1734231827629,20.25098,220.55,220.49,10.0]
[1734231827848,0.25098,220.53,220.49,10.0]
[1734231828034,23.902374,220.51,220.49,10.0]
[1734231828760,1.6056,220.52,220.49,10.0]
[1734231834143,6.2199,220.59,220.49,10.0]
[1734231834144,1.6056,220.58,220.49,10.0]
[1734231834351,1.6056,220.58,220.49,18.71737714]
[1734231834521,1.6056,220.58,220.5,8.71737714]
[1734231834946,1.6056,220.58,220.49,18.71737714]
[1734231835323,1.6056,220.58,220.49,10.0]
[1734231836128,1.6056,220.58,220.49,18.71737714]
[1734231836637,99.835838,220.64,220.5,8.71737714]
[1734231836638,23.776884,220.6,220.5,8.71737714]
[1734231837027,23.776884,220.6,220.51,8.71737714]
[1734231838237,23.776884,220.6,220.5,8.71737714]
[1734231838731,23.776884,220.6,220.51,8.71737714]
[1734231839726,20.0,220.61,220.51,8.71737714]
[1734231840122,20.0,220.61,220.52,8.71737714]
[1734231841045,11.6056,220.67,220.54,8.71737714]
[1734231841230,20.0,220.64,220.55,8.71737714]
[1734231841424,20.0,220.65,220.55,8.71737714]
[1734231842250,20.0,220.65,220.54,8.71737714]
[1734231842631,23.776884,220.64,220.55,8.71737714]
[1734231842944,23.776884,220.66,220.57,8.71737714]
[1734231843837,91.7,220.75,220.59,8.71737714]
[1734231843838,25.954454,220.73,220.59,8.71737714]
[1734231844050,7.8255,220.73,220.57,8.71737714]
[1734231844432,0.12549,220.72,220.57,8.71737714]
[1734231845029,0.12549,220.68,220.57,8.71737714]
[1734231845231,7.8255,220.73,220.6,8.71737714]
[1734231845529,7.8255,220.73,220.58,1.6031]
[1734231845530,1.6056,220.73,220.63,8.71737714]
[1734231845733,1.6056,220.73,220.64,8.71737714]
[1734231846430,0.12549,220.72,220.58,1.6031]
[1734231846644,24.027864,220.72,220.58,1.6031]
[1734231846849,20.0,220.69,220.58,1.6031]
[1734231847038,20.0,220.69,220.6,8.71737714]
[1734231847240,20.0,220.69,220.58,1.6031]
[1734231847551,20.0,220.69,220.6,8.71737714]
[1734231848053,20.0,220.69,220.61,8.71737714]
[1734231849132,20.0,220.69,220.58,1.6031]
[1734231849339,20.0,220.69,220.6,8.71737714]
[1734231849758,20.0,220.69,220.61,8.71737714]
[1734231853875,20.0,220.69,220.62,8.71737714]
[1734231854172,20.0,220.69,220.61,8.71737714]
[1734231855136,23.776884,220.68,220.6,8.71737714]
[1734231855331,20.0,220.65,220.57,8.71737714]
[1734231855553,20.0,220.65,220.56,8.71737714]
[1734231855969,20.0,220.65,220.57,8.71737714]
[1734231857940,23.902374,220.64,220.52,1.6031]
[1734231858150,25.451974,220.64,220.53,8.71737714]
[1734231858666,20.0,220.61,220.54,8.71737714]
[1734231860058,20.0,220.61,220.52,1.6031]
[1734231860259,20.0,220.61,220.53,8.71737714]
[1734231862243,20.0,220.61,220.54,8.71737714]
[1734231864051,20.0,220.61,220.53,8.71737714]
[1734231864745,20.0,220.61,220.52,1.6031]
[1734231864952,20.0,220.61,220.53,8.71737714]
[1734231865650,23.776884,220.6,220.47,1.6172]
[1734231866050,23.776884,220.6,220.5,8.71737714]
[1734231866248,23.776884,220.6,220.47,1.6172]
[1734231866452,23.776884,220.6,220.5,8.71737714]
[1734231868455,23.776884,220.6,220.51,8.71737714]
[1734231868770,23.776884,220.6,220.52,8.71737714]
[1734231869559,23.776884,220.6,220.47,1.6172]
[1734231869774,23.776884,220.6,220.51,8.71737714]
[1734231872367,23.776884,220.6,220.47,1.6172]
[1734231872685,23.776884,220.6,220.5,8.71737714]
[1734231873170,23.776884,220.6,220.47,1.6172]
[1734231873370,23.776884,220.6,220.5,8.71737714]
[1734231874661,20.0,220.61,220.5,8.71737714]
[1734231874861,23.902374,220.63,220.52,8.71737714]
[1734231875175,23.902374,220.63,220.54,8.71737714]
[1734231875176,20.0,220.6,220.54,8.71737714]
[1734231875950,0.12549,220.62,220.54,8.71737714]
[1734231877259,23.776884,220.63,220.54,8.71737714]
[1734231881973,23.776884,220.63,220.52,20.0]
[1734231882283,23.776884,220.63,220.53,8.71737714]
[1734231883282,23.776884,220.63,220.53,8.21737714]
[1734231884280,23.776884,220.63,220.52,28.71737714]
[1734231884982,23.776884,220.63,220.53,8.71737714]
[1734231885672,1.5496,220.64,220.55,8.71737714]
[1734231885882,1.5496,220.64,220.56,8.71737714]
[1734231886187,1.5496,220.64,220.53,8.71737714]
[1734231887076,23.776884,220.63,220.53,8.71737714]
[1734231890881,23.776884,220.63,220.52,20.0]
[1734231891090,23.776884,220.63,220.53,8.71737714]
[1734231891394,0.25098,220.62,220.53,8.71737714]
[1734231893881,0.12549,220.62,220.53,8.71737714]
[1734231899693,23.776884,220.63,220.53,8.71737714]
[1734231903094,20.0,220.58,220.49,10.0]
[1734231903301,23.776884,220.57,220.49,10.0]
[1734231903897,23.776884,220.57,220.49,18.71737714]
[1734231904076,23.776884,220.57,220.49,10.0]
[1734231904493,23.776884,220.57,220.49,18.71737714]
[1734231905172,20.0,220.59,220.51,8.71737714]
[1734231905999,6.31959,220.62,220.49,10.0]
[1734231906000,23.776884,220.54,220.49,10.0]
[1734231911086,6.52039,220.53,220.49,10.0]
[1734231911398,44.027864,220.5,220.49,9.9328]
[1734231912514,45.584964,220.5,220.49,9.9328]
[1734231920191,24.027864,220.47,220.37,0.5519172]
[1734231920396,23.902374,220.43,220.37,0.5519172]
[1734231921099,20.0,220.4,220.37,0.5519172]
[1734231921790,23.776884,220.43,220.37,0.5519172]
[1734231924615,23.776884,220.43,220.37,0.0519172]
[1734231930710,0.12549,220.47,220.37,0.0519172]
[1734231931017,23.902374,220.49,220.37,0.0519172]
[1734231931228,23.776884,220.45,220.37,0.0519172]
[1734231935051,0.12549,220.49,220.37,0.0519172]
[1734231935341,20.0,220.46,220.37,8.76929434]
[1734231937132,20.0,220.46,220.38,8.71737714]
[1734231938318,20.0,220.46,220.37,0.0519172]
[1734231940131,20.0,220.46,220.37,8.76929434]
[1734231941250,20.0,220.46,220.39,8.71737714]
[1734231941417,23.776884,220.49,220.4,8.71737714]
[1734231941623,23.776884,220.49,220.39,8.71737714]
[1734231946737,23.776884,220.49,220.4,8.71737714]
[1734231951691,23.902374,220.54,220.43,8.71737714]
[1734231951906,20.0,220.51,220.43,8.71737714]
[1734231953778,21.5178,220.56,220.45,8.71737714]
[1734231954182,0.12549,220.55,220.45,8.71737714]
[1734231954423,1.82944484,220.58,220.46,8.71737714]
[1734231954714,2.71119373,220.59,220.48,8.71737714]
[1734231954899,0.12549,220.58,220.48,8.71737714]
[1734231955312,1.6134,220.62,220.49,8.71737714]
[1734231955519,7.818304,220.64,220.5,8.71737714]
[1734231955810,0.12549,220.63,220.5,8.71737714]
[1734231956034,7.818304,220.64,220.51,8.71737714]
[1734231956177,1.6536,220.67,220.54,8.71737714]
[1734231956888,0.12549,220.66,220.55,1.5197]
[1734231957025,2.88803761,220.66,220.55,1.5197]
[1734231957626,23.776884,220.66,220.56,8.71737714]
[1734231958033,20.0,220.63,220.56,8.71737714]
[1734231958412,20.0,220.63,220.57,8.71737714]
[1734231958742,23.776884,220.66,220.57,8.71737714]
[1734231959142,1.81069197,220.71,220.59,8.71737714]
[1734231959445,4.36781988,220.72,220.59,8.71737714]
[1734231959948,1.6536,220.72,220.6,8.71737714]
[1734231960108,1.6536,220.72,220.59,8.71737714]
[1734231960310,1.6536,220.72,220.56,6.86568593]
[1734231960311,1.6536,220.72,220.58,8.71737714]
[1734231960849,0.12549,220.71,220.6,8.71737714]
[1734231961407,8.141146,220.75,220.6,8.71737714]
[1734231961408,24.027864,220.74,220.6,8.71737714]
[1734231961656,23.776884,220.7,220.61,8.71737714]
[1734231962120,23.776884,220.7,220.62,8.71737714]
[1734231962543,23.776884,220.7,220.61,8.71737714]
[1734231964046,23.776884,220.7,220.56,6.86567752]
[1734231964236,23.776884,220.7,220.61,8.71737714]
[1734231964450,23.776884,220.7,220.6,8.71737714]
[1734231964644,23.776884,220.7,220.61,8.71737714]
[1734231964817,23.776884,220.7,220.62,8.71737714]
[1734231965018,1.6536,220.79,220.66,8.71737714]
[1734231965256,1.6536,220.79,220.68,8.71737714]
[1734231965843,1.6536,220.79,220.67,8.71737714]
[1734231966353,24.027864,220.78,220.67,8.71737714]
[1734231967536,24.027864,220.78,220.65,6.3829]
[1734231969020,24.027864,220.78,220.66,8.71737714]
[1734231969713,24.027864,220.78,220.65,15.10027714]
[1734231969921,24.027864,220.78,220.67,8.71737714]
[1734231970118,24.027864,220.78,220.68,8.71737714]
[1734231971409,23.776884,220.78,220.68,8.71737714]
[1734231971610,23.776884,220.78,220.65,6.3829]
[1734231971611,20.0,220.82,220.71,8.71737714]
[1734231972047,0.12549,220.81,220.71,8.71737714]
[1734231972235,20.0,220.82,220.71,8.71737714]
[1734231973231,20.0,220.82,220.72,8.71737714]
[1734231975260,24.027864,220.81,220.65,7.06236103]
[1734231975604,24.027864,220.81,220.69,8.71737714]
[1734231975856,24.027864,220.81,220.65,7.06236103]